bitfinex/quotes_SOLUSD_20251120
["timestamp","ask_amount","ask_price","bid_price","bid_amount"]
[1763608306664,2.33,143.87,143.85,66.94045212]
[1763608306883,2.33,143.87,143.85,59.98882769]
[1763608307067,8.61078152,143.87,143.85,0.2]
[1763608307272,0.67,143.86,143.85,0.2]
[1763608307578,2.33,143.86,143.85,62.3]
[1763608307778,2.33,143.86,143.85,72.08882769]
[1763608307779,1.66,143.86,143.85,72.08882769]
[1763608307970,1.66,143.86,143.85,75.09035876]
[1763608308288,7.61990772,143.89,143.86,9.78882769]
[1763608308488,2.35,143.88,143.86,71.88882769]
[1763608310160,1.68,143.87,143.86,9.78882769]
[1763608311987,1.68,143.87,143.85,62.3]
[1763608311988,9.29094328,143.87,143.85,62.3]
[1763608312373,0.66,143.86,143.85,72.08882769]
[1763608313587,11.67619402,143.86,143.85,0.2]
[1763608314675,13.35619402,143.86,143.85,0.2]
[1763608316083,6.95120255,143.86,143.85,0.2]
[1763608316272,9.29120255,143.86,143.85,0.2]
[1763608318186,13.35619402,143.86,143.85,0.2]
[1763608318777,9.29120255,143.86,143.85,0.2]
[1763608319108,13.35619402,143.86,143.85,0.2]
[1763608325979,8.63120255,143.86,143.85,0.2]
[1763608326177,1.68,143.86,143.85,0.2]
[1763608328886,1.68,143.86,143.85,10.38882769]
[1763608329378,1.68,143.86,143.85,9.98882769]
[1763608329975,6.40499147,143.86,143.85,0.2]
[1763608330492,4.72499147,143.86,143.85,0.2]
[1763608330676,13.35619402,143.86,143.85,0.2]
[1763608331386,11.67619402,143.86,143.85,0.2]
[1763608331593,13.35619402,143.86,143.85,0.2]
[1763608332278,7.61120255,143.86,143.85,0.2]
[1763608332476,11.01590765,143.87,143.85,0.2]
[1763608332781,1.68,143.86,143.85,0.2]
[1763608333776,11.67590765,143.87,143.85,0.2]
[1763608333989,1.68,143.86,143.85,0.2]
[1763608334680,11.67590765,143.87,143.85,0.2]
[1763608334898,1.68,143.86,143.85,0.2]
[1763608335110,1.68,143.86,143.85,0.6]
[1763608335310,1.68,143.86,143.85,62.7]
[1763608335626,1.68,143.86,143.85,69.65167484]
[1763608335788,1.68,143.86,143.85,79.44050253]
[1763608336188,1.68,143.86,143.85,72.48882769]
[1763608337710,1.68,143.86,143.85,72.08882769]
[1763608337893,1.68,143.86,143.85,62.3]
[1763608338588,1.68,143.86,143.85,0.2]
[1763608338589,6.40499147,143.86,143.85,0.2]
[1763608338785,11.67619402,143.86,143.85,0.2]
[1763608338987,13.35619402,143.86,143.85,0.2]
[1763608339186,9.29120255,143.86,143.85,0.2]
[1763608339416,13.35619402,143.86,143.85,0.2]
[1763608342199,9.29120255,143.86,143.85,0.2]
[1763608342401,13.35619402,143.86,143.85,0.2]
[1763608342605,6.95120255,143.86,143.85,62.3]
[1763608342803,1.68,143.86,143.85,62.3]
[1763608343016,4.73499147,143.88,143.85,62.3]
[1763608343211,1.66,143.87,143.85,62.3]
[1763608343608,8.61081276,143.87,143.85,62.3]
[1763608344314,6.95081276,143.87,143.85,62.3]
[1763608344520,1.66,143.86,143.85,62.3]
[1763608346316,8.61120255,143.86,143.85,62.3]
[1763608346526,1.66,143.86,143.85,62.3]
[1763608346893,8.61120255,143.86,143.85,62.3]
[1763608347097,13.33619402,143.86,143.85,62.3]
[1763608347316,8.61120255,143.86,143.85,62.3]
[1763608347915,1.66,143.86,143.85,62.3]
[1763608348223,8.61120255,143.86,143.85,62.3]
[1763608348931,6.95092608,143.87,143.85,62.3]
[1763608349130,6.38499147,143.86,143.85,0.2]
[1763608349518,6.38499147,143.86,143.83,0.2]
[1763608349820,4.06499147,143.84,143.83,0.2]
[1763608350229,4.72499147,143.84,143.83,0.2]
[1763608350445,11.67716054,143.84,143.83,0.2]
[1763608350944,47.17854323,143.84,143.81,0.2]
[1763608351120,4.06499147,143.82,143.81,0.2]
[1763608351318,5.72499147,143.82,143.81,0.2]
[1763608351618,6.38499147,143.82,143.81,0.2]
[1763608352432,13.33812733,143.82,143.81,0.2]
[1763608353433,2.78425503,143.83,143.81,0.2]
[1763608353618,1.66,143.82,143.81,0.2]
[1763608353818,6.95275458,143.83,143.81,0.2]
[1763608354018,1.66,143.82,143.81,0.2]
[1763608354431,8.61313586,143.82,143.81,0.2]
[1763608354635,8.61313586,143.82,143.81,62.3]
[1763608357024,1.66,143.82,143.81,62.3]
[1763608357544,11.01619402,143.86,143.81,66.76499147]
[1763608357745,1.66,143.85,143.81,72.48882769]
[1763608358046,2.32,143.85,143.81,72.48882769]
[1763608358461,6.95216907,143.84,143.81,72.48882769]
[1763608360920,1.66,143.83,143.81,72.48882769]
[1763608361127,6.95216907,143.84,143.81,72.48882769]
[1763608361450,6.95168578,143.85,143.81,72.48882769]
[1763608361649,1.66,143.84,143.81,72.48882769]
[1763608361831,6.95168578,143.85,143.82,10.18882769]
[1763608362036,1.66,143.84,143.82,10.18882769]
[1763608362236,1.66,143.84,143.83,0.4]
[1763608362542,1.66,143.84,143.82,10.18882769]
[1763608362742,1.66,143.84,143.82,72.28882769]
[1763608362963,4.06499147,143.88,143.84,9.78882769]
[1763608363140,8.61078933,143.87,143.84,71.88882769]
[1763608363466,6.95078933,143.87,143.84,71.88882769]
[1763608363636,1.66,143.86,143.84,72.28882769]
[1763608365277,6.94782185,143.93,143.86,59.78882769]
[1763608365478,6.94782185,143.93,143.88,9.78882769]
[1763608365651,6.38499147,143.92,143.88,9.78882769]
[1763608365855,4.72499147,143.92,143.88,9.78882769]
[1763608366080,1.66,143.91,143.88,9.78882769]
[1763608366355,4.72499147,144.0,143.91,77.90978769]
[1763608366567,4.06499147,144.02,143.97,4.06499147]
[1763608366747,10.76348192,144.02,143.97,10.76348192]
[1763608366941,2.32,144.01,143.97,10.76348192]
[1763608367361,0.66,144.0,143.97,10.76348192]
[1763608367884,1.66,143.99,143.98,10.76348192]
[1763608368242,7.6042549,144.01,143.98,10.76348192]
[1763608368457,1.66,144.0,143.98,10.76348192]
[1763608368656,8.60453815,144.0,143.97,20.55230961]
[1763608369149,8.60453815,144.0,143.98,11.16348192]
[1763608369150,1.66,144.0,143.98,11.16348192]
[1763608369362,1.66,144.0,143.98,10.76348192]
[1763608369671,18.12096,144.04,143.99,10.76348192]
[1763608369858,1.66,144.03,144.01,10.76348192]
[1763608370057,1.66,144.02,144.01,20.55230961]
[1763608371872,9.27348007,144.02,143.98,9.78882769]
[1763608372047,11.43348192,144.01,143.97,9.78882769]
[1763608372253,0.67,144.0,143.97,9.78882769]
[1763608372552,8.60498428,143.99,143.97,9.78882769]
[1763608372762,1.66,143.99,143.97,9.78882769]
[1763608373777,2.33,143.99,143.96,62.1]
[1763608374082,2.33,143.99,143.95,16.73564105]
[1763608374385,2.33,143.99,143.95,16.74452217]
[1763608374588,2.33,143.99,143.95,23.69118776]
[1763608374745,1.66,143.99,143.95,24.09118776]
[1763608375168,1.66,143.99,143.97,9.78882769]
[1763608377595,1.66,143.99,143.97,71.88882769]
[1763608379099,2.33,143.99,143.97,62.1]
[1763608379392,8.60495378,143.99,143.97,62.1]
[1763608379590,7.62569448,143.98,143.97,62.1]
[1763608380091,7.62569448,143.98,143.95,62.1]
[1763608380484,32.92296508,143.99,143.95,62.1]
[1763608380688,0.67,143.98,143.95,62.1]
[1763608380896,7.62569448,143.98,143.95,62.1]
[1763608381483,7.6158915,143.97,143.95,62.1]
[1763608381801,1.66,143.96,143.95,62.1]
[1763608382390,0.67,144.01,143.96,9.78882769]
[1763608382692,0.67,144.03,143.99,6.95569448]
[1763608382897,1.66,144.02,143.99,69.05569448]
[1763608383205,15.55931079,144.02,143.99,62.1]
[1763608383402,0.67,144.01,143.99,62.1]
[1763608383602,7.61406165,144.01,143.99,62.1]
[1763608384980,0.67,144.01,143.99,62.1]
[1763608386006,8.60356713,144.02,143.99,62.1]
[1763608386203,18.02704149,144.04,144.0,9.78882769]
[1763608386204,7.61298132,144.04,144.0,9.78882769]
[1763608386406,1.66,144.03,144.0,16.74452217]
[1763608386590,1.66,144.02,144.01,6.95569448]
[1763608386910,1.66,144.02,144.01,16.74452217]
[1763608387094,1.66,144.02,144.01,9.78882769]
[1763608388212,13.89787655,144.05,144.01,9.78882769]
[1763608388412,2.33,144.04,144.01,9.78882769]
[1763608388612,1.66,144.03,144.01,9.78882769]
[1763608392419,1.66,144.03,144.01,71.88882769]
[1763608392627,7.05569448,144.06,144.02,9.78882769]
[1763608392818,0.1,144.06,144.04,9.78882769]
[1763608393131,0.1,144.06,144.04,16.74452217]
[1763608393306,1.66,144.05,144.04,9.78882769]
[1763608393500,1.66,144.05,144.04,25.07665448]
[1763608393823,1.66,144.05,144.04,27.90978769]
[1763608394007,1.66,144.05,144.04,34.86548217]
[1763608394208,1.66,144.05,144.04,9.78882769]
[1763608396318,0.1,144.06,144.04,16.74452217]
[1763608396512,1.66,144.05,144.04,16.74452217]
[1763608397940,1.66,144.05,144.03,7.34290235]
[1763608397941,1.66,144.05,144.03,0.4]
[1763608398143,1.66,144.05,144.03,7.35569448]
[1763608398324,1.66,144.05,144.03,14.29868749]
[1763608398631,1.66,144.05,144.04,6.95569448]
[1763608398845,1.66,144.05,144.04,2.59385178]
[1763608399725,0.1,144.06,144.04,2.59385178]
[1763608400038,1.66,144.05,144.03,71.63684479]
[1763608400924,1.66,144.05,144.03,64.69385178]
[1763608401531,1.66,144.05,144.03,71.63680258]
[1763608403722,0.1,144.06,144.03,71.63680258]
[1763608403922,1.66,144.04,144.03,81.42563027]
[1763608405342,0.1,144.06,144.04,9.78882769]
[1763608405648,0.75,144.06,144.04,9.78882769]
[1763608405948,1.66,144.05,144.04,9.78882769]
[1763608406118,1.76,144.06,144.04,62.78267947]
[1763608406439,1.76,144.06,144.05,12.38267947]
[1763608406631,1.76,144.06,144.05,74.48267947]
[1763608408736,0.1,144.06,144.05,71.88882769]
[1763608409046,1.76,144.06,144.05,81.42471348]
[1763608409264,1.76,144.06,144.05,74.48267947]
[1763608410330,1.76,144.06,144.05,71.88882769]
[1763608411519,0.1,144.06,144.05,81.82471348]
[1763608411723,1.76,144.06,144.05,81.82471348]
[1763608412154,0.1,144.06,144.05,81.82471348]
[1763608414447,0.1,144.06,144.05,131.82471348]
[1763608414632,0.1,144.06,144.05,70.41891688]
[1763608417156,0.1,144.06,144.05,67.4250651]
[1763608417345,0.76,144.06,144.04,50.0]
[1763608417660,0.1,144.06,144.05,30.90363947]
[1763608419730,0.1,144.07,144.06,112.0]
[1763608419960,0.1,144.07,144.06,114.59385178]
[1763608420470,0.76,144.07,144.06,62.0]
[1763608420676,7.70107031,144.07,144.06,62.0]
[1763608421055,7.70107031,144.07,144.04,59.78882769]
[1763608421056,10.29492209,144.07,144.04,62.0]
[1763608421257,0.66,144.06,144.04,62.0]
[1763608421560,0.66,144.06,143.99,0.4]
[1763608421561,4.25385178,144.05,143.99,59.53858706]
[1763608421749,6.94251596,144.04,143.99,132.81481178]
[1763608421949,6.94251596,144.04,143.97,0.4]
[1763608421950,2.59385178,144.03,143.97,9.53959263]
[1763608422154,2.59385178,144.02,143.97,9.78882769]
[1763608422360,2.32,144.01,143.97,9.78882769]
[1763608422666,2.32,144.01,143.96,9.54010998]
[1763608422858,7.61635257,144.0,143.95,56.94673326]
[1763608423036,7.61635257,144.0,143.96,9.78882769]
[1763608423234,0.66,143.99,143.96,9.78882769]
[1763608423862,1.66,143.98,143.96,9.78882769]
[1763608424049,1.66,143.98,143.94,34.55371166]
[1763608424259,0.66,143.97,143.95,9.78882769]
[1763608424559,0.66,143.97,143.94,18.12096]
[1763608424858,0.66,143.97,143.94,9.78882769]
[1763608425482,7.61635257,143.97,143.93,9.78882769]
[1763608425686,7.61635257,143.97,143.88,84.75101408]
[1763608425687,13.90320911,143.95,143.89,63.9060233]
[1763608425868,1.66,143.94,143.89,63.9060233]
[1763608426071,2.32,143.94,143.9,9.78882769]
[1763608426376,0.66,143.93,143.9,9.78882769]
[1763608426785,0.66,143.93,143.89,9.78882769]
[1763608426959,7.61635257,143.93,143.89,9.78882769]
[1763608427362,0.66,143.92,143.89,9.78882769]
[1763608427568,0.66,143.93,143.89,9.78882769]
[1763608427952,7.60789727,143.93,143.89,9.78882769]
[1763608428356,0.66,143.92,143.89,9.78882769]
[1763608429773,0.66,143.92,143.89,16.73852546]
[1763608430292,1.66,143.94,143.9,7.35635257]
[1763608430678,1.66,143.94,143.9,6.95635257]
[1763608431179,1.66,143.94,143.9,7.35635257]
[1763608431576,1.66,143.94,143.9,14.30545621]
[1763608431785,2.33,143.94,143.9,14.30545621]
[1763608432183,2.33,143.94,143.9,76.40545621]
[1763608432779,2.33,143.94,143.9,80.22173942]
[1763608433879,9.27734465,143.94,143.9,79.82173942]
[1763608434072,0.67,143.93,143.9,79.82173942]
[1763608434272,9.27734465,143.94,143.9,80.22173942]
[1763608434487,0.67,143.93,143.9,79.82173942]
[1763608436104,1.66,143.94,143.9,80.22173942]
[1763608436297,2.33,143.94,143.9,80.22173942]
[1763608436482,1.66,143.94,143.92,10.77263578]
[1763608436679,1.66,143.94,143.92,62.1]
[1763608437099,2.33,143.94,143.92,62.1]
[1763608437876,1.66,143.94,143.92,62.1]
[1763608439371,0.1,144.07,144.05,18.12096]
[1763608439592,0.1,144.07,144.06,38.68242347]
[1763608439874,0.77,144.07,144.06,18.12096]
[1763608440298,0.1,144.07,144.06,28.89359578]
[1763608440598,0.77,144.07,144.05,10.77263578]
[1763608440897,1.66,144.06,144.04,34.85217275]
[1763608441094,1.66,144.06,144.04,27.90978769]
[1763608441276,0.67,144.05,144.03,10.77263578]
[1763608441471,0.67,144.05,144.04,10.77263578]
[1763608442799,1.66,144.05,144.04,4.0520331]
[1763608444299,1.66,144.05,144.04,10.99454906]
[1763608444997,2.33,144.05,144.04,10.99454906]
[1763608445185,1.66,144.05,144.04,10.99454906]
[1763608445791,2.33,144.05,144.04,10.99454906]
[1763608446083,2.33,144.05,144.04,73.09454906]
[1763608446304,1.66,144.05,144.04,73.09454906]
[1763608448779,1.66,144.05,144.04,79.79209591]
[1763608450231,2.33,144.05,144.03,62.1]
[1763608450532,1.66,144.05,144.04,10.74957995]
[1763608450903,2.33,144.05,144.04,10.74957995]
[1763608455826,0.77,144.07,144.04,17.69209591]
[1763608456135,1.66,144.06,144.04,6.94251596]
[1763608456511,2.33,144.06,144.04,6.94251596]
[1763608456905,0.67,144.05,144.03,6.94285719]
[1763608457228,0.67,144.05,144.04,10.74957995]
[1763608460237,0.67,144.05,143.98,129.46319408]
[1763608460529,7.61220278,144.05,144.01,10.74957995]
[1763608461121,0.7,144.04,144.01,10.74957995]
[1763608461500,0.7,144.04,144.03,10.74957995]
[1763608461723,2.36,144.04,144.03,10.74957995]
[1763608463740,9.30257988,144.04,143.99,18.12096]
[1763608464049,0.7,144.03,144.0,10.74957995]
[1763608465561,11.44957995,144.03,143.99,62.1]
[1763608465725,24.30218025,144.02,143.99,62.1]
[1763608465918,1.66,144.01,143.99,62.1]
[1763608466250,2.36,144.01,143.99,62.1]
[1763608466481,0.7,144.0,143.95,10.74957995]
[1763608466617,10.74957995,143.99,143.93,10.74957995]
[1763608466817,18.82096,144.0,143.93,10.74957995]
[1763608466818,12.40957995,143.98,143.93,10.74957995]
[1763608467018,12.40957995,143.98,143.92,10.74957995]
[1763608467217,0.67,143.97,143.93,10.74957995]
[1763608467634,0.67,143.97,143.94,10.74957995]
[1763608467845,1.66,143.96,143.95,10.74957995]
[1763608468244,2.33,143.96,143.95,10.74957995]
[1763608468448,1.66,143.96,143.95,10.74957995]
[1763608468629,1.66,143.96,143.95,11.14957995]
[1763608468832,1.66,143.96,143.95,4.45626343]
[1763608469344,1.66,143.96,143.95,4.05626343]
[1763608470355,1.66,143.96,143.95,11.00311997]
[1763608471262,1.66,143.96,143.95,4.05626343]
[1763608471666,1.66,143.96,143.95,11.00311997]
[1763608472757,1.66,143.96,143.95,73.10311997]
[1763608475564,1.66,143.96,143.95,73.50311997]
[1763608476352,1.66,143.96,143.95,73.10311997]
[1763608478254,0.67,143.99,143.95,73.10311997]
[1763608478458,1.66,143.98,143.96,4.05626343]
[1763608479159,2.33,143.98,143.96,4.05626343]
[1763608480072,1.66,143.98,143.96,4.05626343]
[1763608481174,48.55515979,144.06,143.97,4.05626343]
[1763608481175,7.61405189,144.01,143.97,4.05626343]
[1763608481354,1.66,144.0,143.98,4.05626343]
[1763608481559,2.33,144.0,143.98,66.15626343]
[1763608481745,0.67,143.99,143.98,66.15626343]
[1763608482680,0.67,143.99,143.98,62.1]
[1763608483082,7.61492673,143.99,143.98,62.1]
[1763608483285,33.08977041,143.99,143.9,4.05626343]
[1763608483585,4.05626343,143.95,143.9,4.05626343]
[1763608483782,1.66,143.94,143.9,4.05626343]
[1763608483950,2.33,143.94,143.9,4.05626343]
[1763608484150,0.67,143.93,143.9,4.05626343]
[1763608485369,7.61794006,143.93,143.9,4.05626343]
[1763608485681,0.67,143.93,143.9,11.00550849]
[1763608485867,7.61787889,143.93,143.9,4.05626343]
[1763608486273,0.67,143.92,143.9,4.05626343]
[1763608487290,7.61839413,143.92,143.89,68.12096]
[1763608487470,7.61839413,143.92,143.9,4.05626343]
[1763608487656,7.61839413,143.92,143.88,0.2]
[1763608487657,0.67,143.91,143.88,0.2]
[1763608487857,1.66,143.9,143.88,0.2]
[1763608488056,5.71626343,143.9,143.88,0.2]
[1763608488259,0.67,143.89,143.88,0.2]
[1763608489583,2.33,143.89,143.88,0.2]
[1763608491251,9.27975328,143.89,143.88,0.2]
[1763608492196,17.36938973,143.94,143.88,4.25626343]
[1763608492358,0.72,143.91,143.88,66.35626343]
[1763608492671,1.66,143.9,143.88,62.3]
[1763608492877,1.66,143.9,143.88,66.35626343]
[1763608493760,1.66,143.89,143.88,119.24998117]
[1763608494788,1.66,143.89,143.88,121.84922606]
[1763608495481,1.66,143.89,143.88,114.89924489]
[1763608496368,1.66,143.89,143.88,122.24948119]
[1763608496573,1.66,143.89,143.88,140.37044119]
[1763608497188,0.72,143.93,143.88,140.37044119]
[1763608497393,1.66,143.9,143.88,140.37044119]
[1763608497684,1.66,143.9,143.89,9.54899817]
[1763608497863,1.66,143.9,143.88,80.42096]
[1763608498068,2.38,143.9,143.88,80.42096]
[1763608498273,1.66,143.9,143.88,83.02020489]
[1763608498472,1.66,143.9,143.88,80.42096]
[1763608499268,2.38,143.9,143.88,80.42096]
[1763608500199,1.66,143.9,143.88,83.02020489]
[1763608500603,2.38,143.9,143.88,80.42096]
[1763608500788,3.31924489,143.89,143.88,0.2]
[1763608500971,18.12096,143.87,143.81,0.2]
[1763608501170,2.59924489,143.82,143.81,0.2]
[1763608501398,4.25924489,143.82,143.77,0.2]
[1763608501696,0.72,143.81,143.77,0.2]
[1763608502080,2.38,143.81,143.77,0.2]
[1763608502390,9.33361935,143.81,143.77,0.2]
[1763608503293,1.66,143.81,143.78,3.19924489]
[1763608503599,2.38,143.81,143.78,6.95500576]
[1763608503784,2.38,143.81,143.78,9.55425065]
[1763608504093,1.66,143.81,143.78,10.15425065]
[1763608504505,1.66,143.81,143.79,2.59924489]
[1763608504678,18.12096,143.86,143.8,0.8]
[1763608504991,18.12096,143.86,143.8,0.2]
[1763608504992,4.97924489,143.85,143.8,0.2]
[1763608505192,2.59924489,143.83,143.8,0.2]
[1763608505378,1.66,143.82,143.8,0.2]
[1763608505695,2.38,143.81,143.8,0.2]
[1763608505867,1.66,143.81,143.8,0.2]
[1763608506510,9.33361935,143.81,143.8,0.2]
[1763608506673,2.38,143.81,143.8,0.2]
[1763608507581,9.33361935,143.81,143.8,0.2]
[1763608507806,20.70064459,143.84,143.8,0.2]
[1763608507979,2.38,143.83,143.8,0.2]
[1763608508179,9.33302172,143.83,143.8,0.2]
[1763608508498,1.66,143.83,143.8,2.79924489]
[1763608508685,8.61267728,143.83,143.8,0.2]
[1763608509187,9.33267728,143.83,143.8,0.2]
[1763608509387,1.66,143.82,143.8,0.2]
[1763608510590,1.66,143.82,143.8,2.79924489]
[1763608511289,1.66,143.82,143.8,64.89924489]
[1763608511806,1.66,143.82,143.8,62.3]
[1763608513913,0.72,143.86,143.81,3.19924489]
[1763608514219,0.72,143.86,143.81,72.25284825]
[1763608514220,1.66,143.85,143.81,72.25284825]
[1763608514422,0.72,143.84,143.81,62.1]
[1763608514590,1.66,143.85,143.81,62.1]
[1763608514788,2.38,143.85,143.81,62.7]
[1763608515211,2.38,143.85,143.81,62.1]
[1763608516122,9.33209165,143.85,143.81,62.1]
[1763608517487,0.72,143.84,143.81,62.1]
[1763608518394,3.31924489,143.84,143.81,62.1]
[1763608519033,0.72,143.84,143.81,62.1]
[1763608519703,7.67255587,143.84,143.81,62.1]
[1763608520707,0.72,143.83,143.81,62.1]
[1763608520903,1.66,143.82,143.81,62.1]
[1763608523314,9.33313586,143.82,143.8,112.3]
[1763608523494,3.31924489,143.81,143.8,0.2]
[1763608523798,0.72,143.81,143.8,0.2]
[1763608525009,3.31924489,143.81,143.8,0.2]
[1763608525410,28.39382424,143.81,143.8,0.2]
[1763608525711,10.27286424,143.81,143.8,0.2]
[1763608527527,7.67361935,143.81,143.8,0.2]
[1763608527833,10.27286424,143.81,143.8,0.2]
[1763608529414,11.93286424,143.81,143.8,0.2]
[1763608537435,21.72169193,143.81,143.8,1e-08]
[1763608537927,18.12096,143.78,143.77,0.2]
[1763608538136,22.38020489,143.78,143.77,0.2]
[1763608538316,23.08020489,143.78,143.77,0.2]
[1763608539229,25.67944978,143.78,143.75,0.2]
[1763608539446,0.7,143.77,143.75,0.2]
[1763608539938,2.59924489,143.76,143.75,0.2]
[1763608540356,6.95603784,143.76,143.75,0.2]
[1763608540647,44.55488698,143.82,143.75,0.8]
[1763608540648,6.95478241,143.79,143.75,0.8]
[1763608540811,34.76605929,143.82,143.75,60.35569583]
[1763608540812,1.66,143.78,143.75,60.35569583]
[1763608541011,1.66,143.78,143.76,0.6]
[1763608542219,8.61515238,143.78,143.76,0.6]
[1763608542534,3.29924489,143.77,143.75,0.2]
[1763608542909,0.7,143.76,143.75,0.2]
[1763608544317,7.65603784,143.76,143.75,0.2]
[1763608544517,10.25528273,143.76,143.75,0.2]
[1763608547542,7.65603784,143.76,143.75,0.2]
[1763608547721,8.61603784,143.76,143.75,0.2]
[1763608547913,9.31603784,143.76,143.75,0.2]
[1763608548241,6.95603784,143.76,143.75,0.2]
[1763608548446,8.61603784,143.76,143.75,0.2]
[1763608551940,1.66,143.76,143.75,0.2]
[1763608553443,8.61603784,143.76,143.75,0.2]
[1763608553625,9.31603784,143.76,143.75,0.2]
[1763608554147,11.91528273,143.76,143.75,0.2]
[1763608555049,13.38877742,143.76,143.75,0.2]
[1763608556053,1.66,143.76,143.75,0.2]
[1763608556920,9.31603784,143.76,143.75,0.2]
[1763608557120,8.61603784,143.76,143.75,0.2]
[1763608557546,9.31603784,143.76,143.75,0.2]
[1763608558135,13.38877742,143.76,143.75,0.2]
[1763608558530,9.31603784,143.76,143.75,0.2]
[1763608560148,8.61603784,143.76,143.75,0.2]
[1763608560357,1.66,143.76,143.75,0.2]
[1763608561741,6.95558667,143.77,143.75,0.2]
[1763608561742,6.95523505,143.78,143.75,0.8]
[1763608561946,18.12096,143.81,143.76,4.07273958]
[1763608561947,0.7,143.81,143.76,4.07273958]
[1763608562139,8.61410292,143.8,143.77,0.6]
[1763608562340,8.61410292,143.8,143.76,62.1]
[1763608562545,4.77273958,143.79,143.76,62.1]
[1763608562741,0.7,143.79,143.76,62.1]
[1763608562958,6.955554,143.77,143.76,62.1]
[1763608563259,8.615554,143.77,143.75,0.2]
[1763608564857,1.66,143.77,143.75,0.2]
[1763608565449,4.07273958,143.85,143.75,11.82909826]
[1763608565647,4.77273958,143.82,143.76,4.07273958]
[1763608565854,4.77273958,143.82,143.76,4.67273958]
[1763608566043,4.07273958,143.82,143.76,4.67273958]
[1763608566247,0.7,143.81,143.76,11.62862945]
[1763608566447,1.66,143.8,143.76,73.72862945]
[1763608566943,2.36,143.8,143.76,73.72862945]
[1763608567145,9.31449355,143.8,143.76,73.72862945]
[1763608567653,30.07249043,143.8,143.76,62.1]
[1763608567848,0.7,143.79,143.76,62.1]
[1763608568051,30.77249043,143.8,143.76,62.7]
[1763608568448,26.69975085,143.8,143.76,62.7]
[1763608570469,6.95382549,143.81,143.77,0.6]
[1763608570773,1.66,143.8,143.77,66.77273958]
[1763608571152,1.66,143.8,143.78,0.6]
[1763608574079,2.36,143.8,143.77,73.12820883]
[1763608575687,1.66,143.8,143.77,73.12820883]
[1763608575868,1.66,143.8,143.77,73.72820883]
[1763608576208,1.66,143.8,143.78,4.67273958]
[1763608576559,1.66,143.8,143.78,66.77273958]
[1763608576759,6.95284912,143.83,143.79,4.67273958]
[1763608577084,6.95284912,143.83,143.79,66.77273958]
[1763608577085,1.66,143.82,143.79,66.77273958]
[1763608577474,1.66,143.82,143.79,73.72731529]
[1763608578183,9.3132195,143.82,143.79,73.12731529]
[1763608578391,9.3132195,143.82,143.79,69.05457571]
[1763608578886,9.3132195,143.82,143.79,73.12731529]
[1763608579266,18.12096,143.86,143.79,73.12731529]
[1763608579267,18.12096,143.86,143.81,4.07273958]
[1763608579475,0.7,143.88,143.85,4.07273958]
[1763608579694,0.7,143.9,143.87,4.07273958]
[1763608579992,1.66,143.89,143.87,4.07273958]
[1763608580164,4.07273958,143.88,143.84,50.0]
[1763608580368,4.76273958,143.88,143.82,54.07273958]
[1763608580575,0.69,143.87,143.82,54.07273958]
[1763608580774,1.66,143.86,143.82,50.0]
[1763608580971,0.69,143.85,143.82,50.0]
[1763608581687,2.35,143.86,143.82,61.62583795]
[1763608581894,9.30126692,143.86,143.82,61.62583795]
[1763608583091,9.30126692,143.86,143.82,61.02583795]
[1763608584599,9.30126692,143.86,143.82,56.95309837]
[1763608584768,9.30126692,143.86,143.82,61.02583795]